bitfinex/quotes_SOLUSD_20250415
["timestamp","ask_amount","ask_price","bid_price","bid_amount"]
[1744732321729,31.11275497,129.19,129.13,32.76055497]
[1744732322027,31.11275497,129.19,129.14,31.11275497]
[1744732322224,31.11275497,129.18,129.15,19.9629]
[1744732322635,31.11275497,129.18,129.15,12.22]
[1744732323011,7.7381,129.23,129.15,12.22]
[1744732323211,31.11275497,129.22,129.17,31.11275497]
[1744732323436,31.11275497,129.24,129.19,31.11275497]
[1744732323737,112.71275497,129.3,129.2,43.33275497]
[1744732323738,7.7351,129.28,129.2,43.33275497]
[1744732324040,31.11275497,129.21,129.2,12.22]
[1744732325128,176.3838746,129.3,129.2,19.9599]
[1744732325129,31.11275497,129.23,129.2,19.9599]
[1744732325513,31.11275497,129.21,129.2,12.22]
[1744732326441,31.11275497,129.22,129.2,19.9599]
[1744732326741,107.6,129.29,129.2,19.9599]
[1744732326742,31.11275497,129.24,129.2,19.9599]
[1744732326946,31.11275497,129.25,129.2,51.07265497]
[1744732327235,31.11275497,129.24,129.2,19.9599]
[1744732327419,7.7353,129.28,129.2,19.9599]
[1744732327420,31.11275497,129.23,129.2,19.9599]
[1744732327734,31.11275497,129.23,129.2,12.22]
[1744732327915,108.6731,129.28,129.2,12.22]
[1744732328117,31.11275497,129.23,129.2,19.9599]
[1744732328426,31.11275497,129.25,129.2,51.07265497]
[1744732328914,81.6,129.27,129.21,31.11275497]
[1744732329112,31.11275497,129.3,129.2,19.9599]
[1744732329113,31.11275497,129.24,129.2,19.9599]
[1744732329534,31.11275497,129.25,129.2,51.07265497]
[1744732329744,89.3345,129.29,129.2,70.42245497]
[1744732329927,89.3345,129.29,129.21,31.11275497]
[1744732330114,81.6,129.29,129.21,31.11275497]
[1744732330322,89.3347,129.29,129.23,7.7381]
[1744732330520,31.11275497,129.25,129.23,7.7381]
[1744732331033,31.11275497,129.26,129.23,7.7381]
[1744732331224,31.11275497,129.27,129.23,7.7381]
[1744732331425,81.6,129.29,129.23,38.85085497]
[1744732331620,31.11275497,129.27,129.23,38.85085497]
[1744732332028,31.11275497,129.27,129.23,7.7381]
[1744732332219,38.77577154,129.33,129.24,18.64964886]
[1744732332419,6.30805879,129.35,129.29,31.11275497]
[1744732332420,14.03915879,129.35,129.29,31.11275497]
[1744732332634,31.11275497,129.34,129.3,12.2]
[1744732333035,31.11275497,129.33,129.3,12.2]
[1744732333619,126.76915497,129.36,129.3,12.2]
[1744732333620,31.11275497,129.34,129.3,12.2]
[1744732333944,31.11275497,129.36,129.31,31.11275497]
[1744732334143,31.11275497,129.33,129.3,12.2]
[1744732334340,31.11275497,129.34,129.3,12.2]
[1744732334518,31.11275497,129.34,129.3,19.9338]
[1744732334847,7.7304,129.36,129.3,19.9338]
[1744732335019,31.11275497,129.33,129.3,12.2]
[1744732335216,31.11275497,129.32,129.3,12.2]
[1744732335426,31.11275497,129.31,129.3,12.2]
[1744732335827,81.6,129.35,129.3,12.2]
[1744732336022,58.16905497,129.36,129.3,12.2]
[1744732336023,31.11275497,129.31,129.3,12.2]
[1744732337540,81.6,129.3,129.22,20.8961]
[1744732337843,31.11275497,129.25,129.23,20.2981]
[1744732338043,31.11275497,129.24,129.23,12.56]
[1744732338235,31.11275497,129.25,129.23,12.56]
[1744732338748,81.6,129.29,129.23,20.2976]
[1744732338749,31.11275497,129.26,129.23,20.2976]
[1744732338934,81.6,129.29,129.24,31.11275497]
[1744732339139,81.6,129.29,129.24,18.64964886]
[1744732339325,128.64151796,129.29,129.25,47.04151796]
[1744732339529,47.04151796,129.28,129.23,105.33406682]
[1744732340036,47.04151796,129.29,129.24,47.04151796]
[1744732340337,128.64151796,129.3,129.23,12.56]
[1744732340550,47.04151796,129.24,129.23,12.56]
[1744732340852,47.04151796,129.25,129.23,20.2981]
[1744732341031,47.04151796,129.26,129.23,20.2981]
[1744732341341,7.7354,129.28,129.23,20.2981]
[1744732341342,47.04151796,129.25,129.23,20.2981]
[1744732341545,7.7354,129.28,129.23,20.2981]
[1744732341726,47.04151796,129.26,129.23,20.2981]
[1744732342122,47.04151796,129.26,129.23,12.56]
[1744732342323,47.04151796,129.24,129.23,12.56]
[1744732342826,128.64151796,129.25,129.23,12.56]
[1744732343036,128.64151796,129.25,129.23,20.298]
[1744732343037,81.6,129.25,129.23,20.298]
[1744732344129,81.6,129.29,129.25,7.7369]
[1744732344346,47.04151796,129.31,129.26,47.04151796]
[1744732344828,47.04151796,129.32,129.28,47.04151796]
[1744732345140,128.64151796,129.33,129.28,59.60151796]
[1744732345339,47.04151796,129.32,129.28,12.56]
[1744732346351,47.04151796,129.32,129.29,7.7345]
[1744732346738,128.64151796,129.33,129.29,7.7345]
[1744732346936,81.6,129.37,129.29,27.0708]
[1744732347145,81.6,129.37,129.34,47.04151796]
[1744732347351,47.04151796,129.39,129.35,12.56]
[1744732347539,128.64151796,129.4,129.35,59.60151796]
[1744732347740,0.03,129.42,129.38,47.04151796]
[1744732347939,47.04151796,129.4,129.35,18.7525]
[1744732348160,0.03,129.42,129.35,12.56]
[1744732348355,0.03,129.42,129.37,47.04151796]
[1744732348553,47.07151796,129.42,129.37,47.04151796]
[1744732348736,47.04151796,129.41,129.36,54.77181796]
[1744732348945,0.03,129.42,129.38,47.04151796]
[1744732349142,0.03,129.42,129.39,47.04151796]
[1744732349362,0.03,129.42,129.38,47.04151796]
[1744732349564,0.03,129.42,129.39,47.04151796]
[1744732349852,0.03,129.42,129.4,47.04151796]
[1744732350060,0.03,129.42,129.41,47.04151796]
[1744732350238,0.03,129.42,129.41,54.76881796]
[1744732350446,0.03,129.5,129.42,46.18534886]
[1744732350756,0.03,129.5,129.43,12.56]
[1744732350974,47.04151796,129.48,129.43,12.56]
[1744732351132,47.04151796,129.44,129.43,12.56]
[1744732351557,47.04151796,129.44,129.39,253.86]
[1744732351752,47.04151796,129.4,129.39,253.86]
[1744732352062,47.04151796,129.4,129.39,12.56]
[1744732352437,47.04151796,129.4,129.31,249.1611]
[1744732352438,54.76941796,129.4,129.35,12.56]
[1744732352638,47.04151796,129.36,129.35,12.56]
[1744732353044,47.04151796,129.36,129.31,242.8225]
[1744732353365,47.04151796,129.36,129.29,12.56]
[1744732353366,47.04151796,129.33,129.29,12.56]
[1744732353744,47.04151796,129.31,129.29,12.56]
[1744732354472,47.04151796,129.32,129.29,12.56]
[1744732354773,54.77201796,129.36,129.29,12.56]
[1744732354998,47.04151796,129.34,129.29,67.33581796]
[1744732355297,47.04151796,129.32,129.29,12.56]
[1744732355866,47.04151796,129.32,129.29,20.2944]
[1744732356282,47.04151796,129.33,129.29,20.2944]
[1744732356602,7.7299,129.37,129.3,47.04151796]
[1744732356762,47.04151796,129.36,129.31,47.04151796]
[1744732356967,7.7281,129.4,129.34,47.04151796]
[1744732357266,81.6,129.41,129.3,65.69116682]
[1744732357267,47.04151796,129.41,129.36,47.04151796]
[1744732357467,47.04151796,129.41,129.37,12.56]
[1744732357672,14.3856,129.43,129.37,59.60151796]
[1744732357896,47.04151796,129.42,129.37,59.60151796]
[1744732358088,47.04151796,129.43,129.38,47.04151796]
[1744732358493,7.7257,129.44,129.39,47.04151796]
[1744732358494,54.76721796,129.44,129.39,47.04151796]
[1744732358794,47.04151796,129.43,129.38,54.77031796]
[1744732359000,128.64151796,129.42,129.37,67.33101796]
[1744732359571,81.6,129.42,129.38,47.04151796]
[1744732359880,81.6,129.42,129.39,47.04151796]
[1744732360495,81.6,129.42,129.39,54.76971796]
[1744732360877,128.64151796,129.42,129.38,7.7289]
[1744732361073,128.64151796,129.42,129.37,20.2895]
[1744732361074,81.6,129.42,129.37,20.2895]
[1744732361299,47.04151796,129.41,129.37,20.2895]
[1744732361873,128.64151796,129.42,129.37,67.33101796]
[1744732362201,99.67601796,129.48,129.39,47.04151796]
[1744732362202,47.04151796,129.44,129.39,47.04151796]
[1744732362500,128.64151796,129.45,129.4,54.76911796]
[1744732362691,81.6,129.44,129.4,54.76911796]
[1744732363595,81.6,129.44,129.37,12.56]
[1744732363596,47.04151796,129.42,129.39,7.7283]
[1744732364096,81.6,129.44,129.4,47.04151796]
[1744732364394,47.04151796,129.43,129.39,54.76981796]
[1744732364585,128.64151796,129.44,129.39,54.76981796]
[1744732365182,81.6,129.44,129.41,47.04151796]
[1744732365382,81.6,129.44,129.42,12.76]
[1744732365581,47.04151796,129.46,129.42,12.76]
[1744732365785,81.6,129.47,129.43,47.04151796]
[1744732366274,47.04151796,129.49,129.45,47.04151796]
[1744732366594,81.63,129.5,129.46,54.76581796]
[1744732366790,47.04151796,129.49,129.47,12.76]
[1744732367894,0.03,129.5,129.48,47.04151796]
[1744732368399,0.03,129.5,129.47,59.80151796]
[1744732368902,0.03,129.5,129.48,54.76471796]
[1744732369104,0.03,129.5,129.49,47.04151796]
[1744732369999,0.03,129.5,129.48,54.76471796]
[1744732370796,0.03,129.5,129.48,7.7232]
[1744732371000,0.03,129.5,129.49,47.04151796]
[1744732371786,0.03,129.5,129.48,7.7232]
[1744732371992,0.03,129.5,129.48,54.76471796]
[1744732372699,0.03,129.5,129.49,54.76411796]
[1744732372899,0.03,129.5,129.49,7.7226]
[1744732373200,0.03,129.5,129.49,54.76411796]
[1744732375086,0.03,129.5,129.49,7.7226]
[1744732375585,0.03,129.5,129.49,54.76411796]
[1744732377309,0.03,129.5,129.49,7.7226]
[1744732377509,0.03,129.5,129.49,54.76411796]
[1744732378701,0.03,129.5,129.49,7.7226]
[1744732378903,0.03,129.5,129.48,7.7229]
[1744732379404,0.03,129.5,129.48,38.63633447]
[1744732380187,0.03,129.5,129.49,30.91343447]
[1744732380386,0.03,129.5,129.49,38.63603447]
[1744732381090,0.03,129.5,129.49,7.7226]
[1744732381292,0.03,129.5,129.49,38.63603447]
[1744732381910,0.03,129.54,129.5,18.64964886]
[1744732382108,0.03,129.54,129.49,27.0291]
[1744732382312,0.03,129.54,129.5,30.91343447]
[1744732382504,0.03,129.54,129.51,57.93833447]
[1744732382705,0.03,129.54,129.52,12.76]
[1744732384508,0.03,129.54,129.53,38.63363447]
[1744732385320,0.03,129.56,129.53,76.58378333]
[1744732385623,0.03,129.56,129.55,30.91343447]
[1744732386405,0.03,129.56,129.54,30.91343447]
[1744732386618,0.03,129.56,129.55,7.719]
[1744732387429,0.03,129.56,129.55,38.63243447]
[1744732387716,0.03,129.56,129.55,7.719]
[1744732388533,0.03,129.56,129.55,57.28208333]
[1744732389112,0.03,129.56,129.55,7.719]
[1744732389526,0.03,129.56,129.55,38.63243447]
[1744732390125,0.03,129.56,129.55,57.28208333]
[1744732390801,0.03,129.56,129.55,26.36864886]
[1744732391006,0.03,129.56,129.55,7.719]
[1744732392505,0.03,129.56,129.55,57.28208333]
[1744732393633,0.03,129.57,129.55,57.28208333]
[1744732393835,0.03,129.61,129.57,18.64964886]
[1744732394134,0.03,129.61,129.58,43.65343447]
[1744732394312,0.03,129.61,129.58,12.74]
[1744732394514,0.03,129.61,129.59,7.7166]
[1744732395132,0.03,129.61,129.6,30.91343447]
[1744732395634,0.03,129.66,129.6,61.82686894]
[1744732395844,30.91343447,129.64,129.61,12.4]
[1744732396230,0.03,129.66,129.61,12.4]
[1744732396432,30.94343447,129.66,129.61,43.31343447]
[1744732396739,30.91343447,129.65,129.62,7.7148]
[1744732396936,0.03,129.66,129.62,7.7148]
[1744732397246,30.91343447,129.64,129.61,20.1152]
[1744732397545,30.91343447,129.63,129.6,7.7157]
[1744732397715,30.91343447,129.63,129.61,12.4]
[1744732398240,30.91343447,129.64,129.61,12.4]
[1744732398441,30.91343447,129.64,129.61,20.1152]
[1744732398921,30.91343447,129.65,129.61,20.1152]
[1744732399240,30.91343447,129.65,129.61,70.31723447]
[1744732399441,30.94343447,129.66,129.62,30.91343447]
[1744732399743,30.91343447,129.65,129.61,39.4038]
[1744732399944,0.03,129.66,129.63,30.91343447]
[1744732400147,0.03,129.66,129.64,30.91343447]
[1744732400331,0.03,129.66,129.65,30.91343447]
[1744732400529,0.03,129.66,129.65,51.02643447]
[1744732401447,0.03,129.67,129.65,51.02643447]
[1744732401651,0.03,129.67,129.66,30.91343447]
[1744732402041,0.03,129.67,129.65,51.02643447]
[1744732402227,0.03,129.67,129.66,30.91343447]
[1744732402429,0.03,129.67,129.66,38.62583447]
[1744732402727,0.03,129.67,129.66,7.7124]
[1744732402934,0.03,129.67,129.66,20.0924]
[1744732403551,0.03,129.67,129.66,51.00583447]
[1744732404944,0.03,129.67,129.66,69.65548333]
[1744732405351,0.03,129.73,129.67,18.64964886]
[1744732405523,0.03,129.73,129.71,30.91343447]
[1744732405726,6.521,129.78,129.72,61.94308333]
[1744732405920,6.521,129.78,129.73,12.38]
[1744732406147,6.521,129.78,129.73,43.29343447]
[1744732406333,37.43443447,129.78,129.73,43.29343447]
[1744732406535,6.521,129.78,129.75,7.7071]
[1744732407047,6.521,129.78,129.75,38.62053447]
[1744732407557,6.521,129.78,129.75,7.7071]
[1744732407730,30.91343447,129.77,129.74,7.7075]
[1744732408150,30.91343447,129.77,129.74,20.0875]
[1744732408351,37.43443447,129.78,129.74,20.0875]
[1744732409043,6.521,129.78,129.74,51.00093447]
[1744732409237,6.521,129.78,129.75,30.91343447]
[1744732409450,6.521,129.78,129.74,51.00093447]
[1744732409628,37.43443447,129.78,129.75,12.38]
[1744732409829,6.521,129.78,129.75,12.38]
[1744732410753,6.521,129.78,129.76,7.7065]
[1744732411937,37.43443447,129.78,129.75,20.0868]
[1744732412355,6.521,129.78,129.75,20.0868]
[1744732413054,37.43443447,129.78,129.75,20.0868]
[1744732414660,6.521,129.78,129.75,20.0868]
[1744732415041,0.03,129.78,129.76,30.91343447]
[1744732415449,0.03,129.78,129.77,30.91343447]
[1744732415855,0.03,129.78,129.75,39.3546]
[1744732416058,0.03,129.78,129.75,70.26803447]
[1744732416638,0.03,129.78,129.75,57.88803447]
[1744732417053,0.03,129.78,129.76,12.38]
[1744732418063,0.03,129.78,129.76,20.0864]
[1744732420165,0.03,129.78,129.76,50.99983447]
[1744732420868,0.03,129.78,129.76,20.0864]
[1744732422762,0.03,129.78,129.76,39.32157802]
[1744732422964,0.03,129.78,129.77,19.23517802]
[1744732423462,0.03,129.78,129.76,39.32157802]
[1744732425870,0.03,129.78,129.77,19.23517802]
[1744732426356,0.03,129.78,129.77,26.94107802]
[1744732426561,0.03,129.78,129.77,7.7059]
[1744732429776,0.03,129.81,129.8,19.23517802]
[1744732430352,0.03,129.81,129.77,26.9707]
[1744732430353,19.26517802,129.81,129.77,19.2648]
[1744732430549,19.23517802,129.79,129.78,12.18]
[1744732431477,0.03,129.81,129.78,12.18]
[1744732431851,19.23517802,129.79,129.75,7.7068]
[1744732432054,19.23517802,129.77,129.75,19.8868]
[1744732432261,0.03,129.81,129.74,240.4]
[1744732432262,19.23517802,129.76,129.74,240.4]
[1744732432478,19.23517802,129.77,129.74,248.1077]
[1744732432678,19.23517802,129.76,129.74,240.4]
[1744732433060,19.23517802,129.77,129.74,248.1077]
[1744732433271,13.8355,129.8,129.74,248.1077]
[1744732433272,19.23517802,129.78,129.74,248.1077]
[1744732434177,19.23517802,129.75,129.68,7.7112]
[1744732434362,19.23517802,129.7,129.68,7.7112]
[1744732434575,19.23517802,129.69,129.67,12.243]
[1744732434879,19.23517802,129.68,129.67,12.243]
[1744732435369,19.23517802,129.7,129.67,12.243]
[1744732435682,19.23517802,129.69,129.67,12.243]
[1744732436268,19.23517802,129.68,129.67,12.243]
[1744732436465,19.23517802,129.68,129.67,0.063]
[1744732436871,19.23517802,129.69,129.67,0.063]
[1744732437182,30.82925007,129.69,129.67,0.063]
[1744732437371,30.82925007,129.68,129.67,0.063]
[1744732437972,7.7097,129.71,129.67,0.063]
[1744732438169,30.82925007,129.69,129.67,0.063]
[1744732438366,146.24365007,129.68,129.6,0.063]
[1744732438571,30.82925007,129.63,129.6,0.063]
[1744732438765,30.82925007,129.62,129.6,0.063]
[1744732439283,30.82925007,129.63,129.6,0.063]
[1744732440471,134.6931,129.68,129.6,30.89225007]
[1744732440774,30.82925007,129.63,129.6,0.063]
[1744732440971,6.1671,129.68,129.62,30.82925007]
[1744732441173,30.82925007,129.69,129.63,12.18]
[1744732441482,30.82925007,129.69,129.64,30.82925007]
[1744732441656,30.82925007,129.69,129.65,18.64964886]
[1744732441858,6.548,129.72,129.65,49.47889893]
[1744732442079,6.548,129.72,129.67,30.82925007]
[1744732442271,6.548,129.72,129.68,43.00925007]
[1744732442470,6.548,129.72,129.69,12.18]
[1744732442669,37.37725007,129.72,129.69,12.18]
[1744732442878,7.7078,129.74,129.69,12.18]
[1744732443079,6.2425,129.75,129.69,43.00925007]
[1744732443274,81.6,129.76,129.7,18.64964886]
[1744732443463,30.82925007,129.76,129.7,18.64964886]
[1744732443664,30.82925007,129.74,129.7,18.64964886]
[1744732443963,30.82925007,129.73,129.69,38.18]
[1744732444171,30.82925007,129.72,129.69,12.18]
[1744732444388,30.82925007,129.74,129.69,50.71965007]
[1744732444587,30.82925007,129.73,129.69,19.8904]
[1744732444888,30.82925007,129.72,129.69,12.18]
[1744732445081,30.82925007,129.71,129.69,12.18]
[1744732445270,30.82925007,129.71,129.69,19.8906]
[1744732445476,30.82925007,129.71,129.69,12.18]
[1744732445779,30.82925007,129.7,129.69,12.18]
[1744732446484,38.53935007,129.7,129.65,12.18]
[1744732446691,30.82925007,129.66,129.65,12.18]
[1744732446989,30.82925007,129.66,129.61,12.18]
[1744732447290,30.82925007,129.65,129.61,43.00925007]
[1744732447787,30.82925007,129.66,129.61,43.00925007]
[1744732448165,107.6,129.69,129.61,43.00925007]
[1744732448491,138.42925007,129.69,129.64,30.82925007]
[1744732448707,30.82925007,129.68,129.63,38.54345007]
[1744732449068,26.0,129.69,129.63,38.54345007]
[1744732449388,30.82925007,129.64,129.61,12.18]
[1744732449568,30.82925007,129.62,129.61,12.18]
[1744732449767,30.82925007,129.63,129.61,12.18]
[1744732449966,30.82925007,129.62,129.61,12.18]
[1744732450490,30.82925007,129.63,129.61,12.18]
[1744732450676,7.7118,129.67,129.61,12.18]
[1744732450991,30.82925007,129.63,129.61,12.18]
[1744732451377,30.82925007,129.62,129.61,12.18]
[1744732452185,30.82925007,129.63,129.61,12.18]
[1744732452877,112.42925007,129.65,129.61,19.8954]
[1744732453278,81.6,129.65,129.62,30.82925007]
[1744732454389,81.6,129.65,129.64,30.82925007]
[1744732454588,112.42925007,129.7,129.65,7.713]
[1744732454786,81.6,129.69,129.66,43.00925007]
[1744732454967,81.6,129.69,129.66,12.18]
[1744732455674,112.42925007,129.69,129.66,12.18]
[1744732456180,30.82925007,129.67,129.66,12.18]
[1744732456792,38.54105007,129.67,129.66,12.18]
[1744732457670,38.54105007,129.67,129.62,12.4]
[1744732457889,30.82925007,129.63,129.62,12.4]
[1744732458276,33.7118,129.67,129.62,12.4]
[1744732458474,30.82925007,129.65,129.62,12.4]
[1744732458897,26.0,129.67,129.62,12.4]
[1744732459192,30.82925007,129.65,129.62,20.1146]
[1744732459794,6.6637,129.71,129.63,30.82925007]
[1744732459970,30.82925007,129.68,129.63,30.82925007]
[1744732460373,30.82925007,129.66,129.62,20.1146]
[1744732460684,30.82925007,129.65,129.62,20.1146]
[1744732461292,30.82925007,129.65,129.62,12.4]
[1744732461597,30.82925007,129.64,129.62,12.4]
[1744732463713,111.67025007,129.63,129.62,12.4]
[1744732465693,80.841,129.63,129.62,12.4]
[1744732466294,111.67025007,129.63,129.62,12.4]
[1744732466799,80.841,129.63,129.62,12.4]
[1744732467193,119.38465007,129.63,129.6,0.063]
[1744732467395,30.82925007,129.61,129.6,0.063]
[1744732468604,61.65850014,129.61,129.6,0.063]
[1744732468806,106.308149,129.61,129.57,0.063]
[1744732469006,30.82925007,129.58,129.57,0.063]
[1744732469188,38.54645007,129.58,129.57,0.063]
[1744732469709,30.82925007,129.58,129.57,0.063]
[1744732470010,1.6412,129.63,129.57,0.063]
[1744732470209,30.82925007,129.6,129.57,0.063]
[1744732470412,30.82925007,129.61,129.57,0.063]
[1744732470811,30.82925007,129.62,129.57,30.89225007]
[1744732471306,56.82925007,129.63,129.58,38.54645007]
[1744732471486,56.82925007,129.63,129.59,12.42]
[1744732471688,30.82925007,129.62,129.59,12.42]
[1744732472607,81.6,129.61,129.59,12.42]
[1744732473793,100.89006283,129.61,129.59,12.42]
[1744732474417,19.29006283,129.6,129.59,12.42]
[1744732475313,100.89006283,129.61,129.59,12.42]
[1744732475902,19.29006283,129.6,129.59,12.42]
[1744732476112,38.58012566,129.6,129.57,0.063]
[1744732476409,19.29006283,129.58,129.57,0.063]
[1744732477686,6.4463,129.64,129.57,0.063]
[1744732478015,19.29006283,129.61,129.57,0.063]
[1744732478201,81.6,129.6,129.57,19.35306283]
[1744732479417,81.6,129.6,129.58,7.7172]
[1744732480717,81.6,129.6,129.59,12.42]
[1744732481497,81.6,129.6,129.59,20.1366]
[1744732482192,81.6,129.6,129.59,12.42]
[1744732483693,81.6,129.6,129.59,20.1366]
[1744732484117,100.89006283,129.65,129.59,39.42666283]
[1744732484418,81.6,129.67,129.63,19.29006283]
[1744732484725,81.6,129.66,129.64,12.42]
[1744732484895,100.89006283,129.66,129.64,12.42]
[1744732485503,81.6,129.66,129.64,12.42]
[1744732486818,81.6,129.66,129.64,20.1335]
[1744732488897,7.7109,129.69,129.64,20.1335]
[1744732488898,81.6,129.69,129.64,20.1335]
[1744732489120,81.6,129.69,129.66,19.29006283]
[1744732489419,81.6,129.69,129.65,19.29006283]
[1744732489996,81.6,129.69,129.66,7.7124]
[1744732491003,81.6,129.69,129.66,26.9935]
[1744732491212,81.6,129.69,129.66,27.00246283]
[1744732491414,81.6,129.69,129.66,7.7124]
[1744732493009,81.6,129.72,129.66,27.00246283]
[1744732493207,100.89006283,129.71,129.66,27.00246283]
[1744732493609,100.89006283,129.71,129.67,19.29006283]
[1744732494021,81.6,129.71,129.67,19.29006283]
[1744732494210,100.89006283,129.71,129.67,19.29006283]
[1744732494405,81.6,129.71,129.69,27.00066283]
[1744732494615,0.03,129.73,129.7,31.49006283]
[1744732494904,0.03,129.73,129.72,19.29006283]
[1744732495322,0.03,129.73,129.72,37.93971169]
[1744732496423,0.03,129.73,129.72,7.7089]
[1744732496601,0.03,129.73,129.72,26.99896283]
[1744732496806,0.03,129.73,129.72,45.64861169]
[1744732497613,0.03,129.73,129.72,26.99896283]
[1744732498224,0.03,129.73,129.72,45.64861169]
[1744732499322,0.03,129.73,129.72,64.93867452]
[1744732499635,0.03,129.73,129.72,45.64861169]
[1744732500326,0.03,129.73,129.72,26.99896283]
[1744732500739,0.03,129.73,129.72,7.7089]
[1744732500941,0.03,129.73,129.72,45.64861169]
[1744732501737,0.03,129.73,129.72,7.7089]
[1744732501941,19.32006283,129.73,129.68,7.7106]
[1744732502115,19.29006283,129.69,129.64,12.18]
[1744732502311,19.29006283,129.7,129.65,19.29006283]
[1744732502515,19.29006283,129.7,129.66,18.64964886]
[1744732502929,19.29006283,129.69,129.65,7.713]
[1744732503133,30.82660925,129.7,129.65,38.53960925]
[1744732503745,7.7091,129.72,129.66,30.82660925]
[1744732504040,30.82660925,129.71,129.66,30.82660925]
[1744732504242,30.82660925,129.7,129.65,38.53960925]
[1744732505052,38.53670925,129.7,129.65,38.53960925]
[1744732505259,30.82660925,129.69,129.65,38.53960925]
[1744732506346,30.82660925,129.68,129.65,7.713]
[1744732506653,30.82660925,129.69,129.65,7.713]
[1744732507253,30.82660925,129.66,129.64,12.18]
[1744732507752,30.82660925,129.65,129.6,240.5]
[1744732507951,30.82660925,129.62,129.6,252.68]
[1744732508337,30.82660925,129.62,129.6,12.18]
[1744732508544,30.82660925,129.61,129.6,12.18]
[1744732509047,30.82660925,129.62,129.6,12.18]
[1744732509560,30.82660925,129.61,129.6,12.18]
[1744732510658,61.6532185,129.61,129.57,0.063]
[1744732510958,30.82660925,129.58,129.57,0.063]
[1744732511541,30.82660925,129.59,129.57,0.063]
[1744732511842,30.82660925,129.58,129.57,0.063]
[1744732512231,81.6,129.59,129.57,0.063]
[1744732512664,30.82660925,129.58,129.57,0.063]
[1744732513166,64.54380925,129.58,129.57,0.063]
[1744732514954,30.82660925,129.58,129.57,0.063]
[1744732515465,112.42660925,129.59,129.57,0.063]
[1744732516536,81.6,129.59,129.57,0.063]
[1744732516735,81.6,129.59,129.57,43.08960925]
[1744732516965,81.6,129.65,129.58,49.47625811]
[1744732517137,81.6,129.65,129.62,30.82660925]
[1744732517342,81.6,129.66,129.63,43.02660925]
[1744732517629,112.42660925,129.66,129.64,12.2]
[1744732518354,30.82660925,129.65,129.64,12.2]
[1744732518539,112.42660925,129.66,129.64,12.2]
[1744732519447,138.42660925,129.65,129.6,12.2]
[1744732519649,30.82660925,129.61,129.6,12.2]
[1744732519951,81.6,129.64,129.6,12.2]
[1744732520261,30.82660925,129.62,129.6,12.2]
[1744732520449,30.82660925,129.61,129.6,12.2]
[1744732522455,112.42660925,129.62,129.6,12.2]
[1744732523656,30.82660925,129.61,129.6,12.2]
[1744732524660,38.54200925,129.61,129.6,12.2]
[1744732524865,38.54200925,129.61,129.57,0.063]
[1744732525065,30.82660925,129.59,129.57,0.063]
[1744732526762,30.82660925,129.58,129.57,0.063]
[1744732527845,112.42660925,129.59,129.57,0.063]
[1744732528168,30.82660925,129.58,129.57,0.063]
[1744732529966,38.54380925,129.58,129.57,0.063]
[1744732532649,57.19345811,129.58,129.57,0.063]
[1744732535067,30.82660925,129.58,129.57,0.063]
[1744732537058,38.54380925,129.58,129.57,0.063]
[1744732539876,57.19345811,129.58,129.57,0.063]
[1744732540969,38.54380925,129.58,129.57,0.063]
[1744732542679,7.7172,129.58,129.57,0.063]
[1744732542982,38.54380925,129.58,129.57,0.063]
[1744732543181,27.0265121,129.58,129.57,0.063]
[1744732546182,7.7172,129.58,129.57,0.063]
[1744732546476,27.0265121,129.58,129.57,0.063]
[1744732546683,45.67616096,129.58,129.57,0.063]
[1744732549962,81.474,129.56,129.55,0.063]
[1744732550183,100.7833121,129.56,129.55,0.063]